Cogmind - Beta 14 @@@ ROGUE MODE // 2025.03.20 @ 19:56:00 Player: Wodorek Result: Destroyed by G-34 Mercenary with Small Laser Performance ------------- Evolutions (1) 500 Regions Visited (2) 400 Robots Destroyed (9) 45 Value Destroyed (114) 114 Prototype IDs (3) 60 Alien Tech Used (0) 0 Bonus (0) 0 TOTAL SCORE: 1119 Bonus ------- None Cogmind --------- Core Integrity 0/400 Matter 147/300 Energy 98/100 System Corruption 0% Temperature Cool (6) Movement Hovering (50) Location -9/Materials Parts ------- > --- POWER (1) -------- (None) > --- PROPULSION (3) --- Aerolev Unit > --- UTILITY (3) ------ (None) > --- WEAPON (2) ------- Great Maul Great Maul > --- INVENTORY (5) ---- Light Treads Light Treads Light Assault Rifle Datajack Peak State ------------ > --- POWER ------------ (None) > --- PROPULSION ------- Aerolev Unit Aerolev Unit > --- UTILITY ---------- (None) > --- WEAPON ----------- Great Maul Great Maul > --- INVENTORY -------- Light Treads Light Treads Light Assault Rifle Datajack [Rating: 14] Favorites ----------- Power Ion Engine Engine Ion Engine Propulsion Light Treads Treads Light Treads Hover Unit Hover Unit Utility Structural Scanner Device Structural Scanner Protection Light Armor Plating Weapon Medium Laser Energy Gun Medium Laser Energy Cannon Beam Cannon Ballistic Gun Light Assault Rifle Impact Weapon Great Maul Build | -11 -10 -9 ------- Run | Yrd Mat Mat Slots Evolved 2 | . . 2 Power . | . . . Propulsion 1 | . . 1 Utility 1 | . . 1 Weapon . | . . . Parts Attached 15 | 5 6 4 Power 1 | 1 . . Engine 1 | 1 . . Core . | . . . Reactor . | . . . Propulsion 6 | 2 2 2 Treads 2 | 2 . . Leg . | . . . Wheel . | . . . Hover 4 | . 2 2 Flight . | . . . Utility 2 | . 2 . Device 1 | . 1 . Storage . | . . . Processor . | . . . Hackware . | . . . Protection 1 | . 1 . Artifact . | . . . Weapon 6 | 2 2 2 Energy Gun 1 | 1 . . Energy Cannon 1 | . 1 . Ballistic Gun 2 | 1 1 . Ballistic Cannon . | . . . Launcher . | . . . Special Weapon . | . . . Impact Weapon 2 | . . 2 Slashing Weapon . | . . . Piercing Weapon . | . . . Special Melee Weapon . | . . . Unidentified Prototypes 1 | . . 1 Parts Lost 5 | . . 5 Power 1 | . . 1 Propulsion 2 | . . 2 Utility 1 | . . 1 Weapon 1 | . . 1 Highest Loss Streak 4 | . . 4 To Critical Strikes . | . . . Average Slot Usage (%) 69 | . 76 38 Engine 12 | . 14 3 Treads 21 | . 26 . Hover 3 | . 1 12 Device 2 | . 2 4 Protection 3 | . 2 3 Energy Gun 12 | . 14 3 Energy Cannon 4 | . 4 4 Ballistic Gun 7 | . 9 . Impact Weapon 1 | . . 5 Peak Build Rating 14 | 5 7 14 Average Rating 5 | 3 5 5 On Entrance 4 | . 5 7 Naked Turns 52 | . . 52 Heaviest Build 14 | 8 14 14 Greatest Support 40 | 40 40 16 Greatest Overweight (x) 2 | . 1 2 Average Overweight (x) . | . . . Largest Inventory Capacity 5 | 5 5 5 Average Capacity 5 | 5 5 5 Most Carried 4 | . 4 4 Average Carried 1 | . 1 4 Final Capacity 5 | 5 5 5 Final Carried 4 | . 4 4 Class Distribution -------------------- 100% | Mutant Dominant Class ---------------- Mutant | -10/Materials Mutant | -9/Materials Resources | -11 -10 -9 ----------- Run | Yrd Mat Mat Matter Collected 185 | 100 51 34 Remotely . | . . . Salvage Created 178 | . 83 95 Parts 21 | . 10 11 Haulers Intercepted . | . . . Recyclers Shooed . | . . . Parts Field Recycled . | . . . Retrieved Matter . | . . . Parts Self-Destructed . | . . . Prevented . | . . . Kills | -11 -10 -9 ------- Run | Yrd Mat Mat Combat Hostiles Destroyed 9 | . 5 4 Melee 2 | . . 2 Guns 5 | . 5 . Cannons 2 | . . 2 Classes Destroyed 2 | . 1 1 Swarmer 8 | . 5 3 Grunt 1 | . . 1 Best Kill Streak 3 | . 3 2 Combat Bots Only 3 | . 3 2 Max Kills in Single Turn 1 | . 1 1 Gunslinging . | . . . Exploded . | . . . Melee 1 | . . 1 Uniques/NPCs Destroyed . | . . . Combat | -11 -10 -9 -------- Run | Yrd Mat Mat Hostile Shots Fired 161 | . 44 117 Missed 47 | . 14 33 Damage Taken 1196 | . 247 949 Core 456 | . 53 403 Absorbed by Shields . | . . . Core Remaining (%) 89 | 100 78 . Volleys Fired 18 | . 12 6 Largest 2 | . 2 2 Hottest 110 | . 110 110 Shots Fired 34 | . 23 11 Gun 27 | . 22 5 Cannon 7 | . 1 6 Launcher . | . . . Special . | . . . Kinetic 8 | . 8 . Thermal 26 | . 15 11 Explosive . | . . . Electromagnetic . | . . . Robot Hit Streak 4 | . 4 1 Robot Miss Streak 9 | . 8 9 Penetration Max . | . . . Secondary Targets 1 | . 1 . Max Gunslinging Chain 1 | . 1 . Shots Hit Robots 17 | . 7 10 Core Hits 9 | . 5 4 Critical Kills . | . . . Critical Parts Destroyed 1 | . . 1 Critical Strikes 1 | . . 1 Smash 1 | . . 1 Melee Attacks 7 | . . 7 Impact 7 | . . 7 Slashing . | . . . Piercing . | . . . Sneak Attacks . | . . . Combat Hostiles . | . . . Follow-up Attacks . | . . . Damage Inflicted 431 | . 88 343 Guns 100 | . 88 12 Cannons 71 | . . 71 Explosions . | . . . Melee 225 | . . 225 Ramming 35 | . . 35 Kinetic . | . . . Thermal 171 | . 88 83 Explosive . | . . . Electromagnetic . | . . . Impact 225 | . . 225 Slashing . | . . . Piercing . | . . . Highest Corruption 6 | . 6 . Average Corruption 5 | . 5 . Corruption Purged . | . . . Corruption Blocked . | . . . Effects 20 | . 20 . Message Errors 7 | . 7 . Matter Fused 5 | . 5 . Energy Discharges 1 | . 1 . Data Loss (minor) 4 | . 4 . Data Loss (major) 1 | . 1 . Misfires 2 | . 2 . Overload Shots . | . . . Overflow Damage 47 | . . 47 Projectiles . | . . . Explosions . | . . . Melee 47 | . . 47 Knockbacks . | . . . Impact . | . . . Kinetic . | . . . Secondary . | . . . Self-Inflicted Damage 16 | . . 16 Shots . | . . . Rammed 9 | . 1 8 Targets Rammed 9 | . 1 8 Kicked . | . . . Crushed . | . . . Highest Temperature 280 | . 70 280 Average Temperature 78 | . 25 144 Received Heat Transfer 231 | . . 231 Effects 5 | . . 5 Energy Bleed 1 | . . 1 Interference 4 | . . 4 Siege Activations . | . . . Robots Corrupted . | . . . Combat Hostiles . | . . . Parts Fried . | . . . Impact Corruptions 1 | . . 1 Robots Melted . | . . . Combat Hostiles . | . . . Parts Melted 1 | . 1 . Heat Transferred 444 | . 259 185 Parts Sabotaged . | . . . Parts Stolen . | . . . Parts Stripped . | . . . Power Chain Reactions . | . . . Alert | -11 -10 -9 ------- Run | Yrd Mat Mat Peak Influence 198 | . 100 198 Initial 42 | . . 42 Average 53 | . 48 110 Maximum Alert Level . | . . . Low Security (%) 100 | 100 100 100 Level 1 . | . . . Level 2 . | . . . Level 3 . | . . . Level 4 . | . . . Level 5 . | . . . High Security . | . . . Max Security . | . . . Squads Dispatched . | . . . Investigation . | . . . Extermination . | . . . Reinforcement . | . . . Assault . | . . . Garrison . | . . . Intercept . | . . . Searches Triggered . | . . . Construction Impeded . | . . . Haulers Reinforced . | . . . Active Scanning Responses . | . . . Cargo Convoy Interrupts . | . . . Stealth | -11 -10 -9 --------- Run | Yrd Mat Mat Distress Signals 1 | . . 1 Communications Jammed . | . . . Distress Signals . | . . . Times Spotted 27 | . 13 14 Peak Tracking Total 8 | . 4 8 Tactical Retreats 2 | . . 2 Traps | -11 -10 -9 ------- Run | Yrd Mat Mat Traps Triggered 5 | . 4 1 Indirectly . | . . . Trap Hack Attempts . | . . . Triggered . | . . . Disarmed . | . . . Reprogrammed . | . . . Reused . | . . . Traps Extracted . | . . . Installed . | . . . Triggered . | . . . Machines | -11 -10 -9 ---------- Run | Yrd Mat Mat Machines Disabled . | . . . Max in Single Turn . | . . . Machines Repaired . | . . . Machines Dismantled . | . . . Machines Sabotaged . | . . . Overloaded Fab Kills . | . . . Hacking | -11 -10 -9 --------- Run | Yrd Mat Mat Machines Accessed 3 | . 3 . Terminals 3 | . 3 . Fabricators . | . . . Repair Stations . | . . . Recycling Units . | . . . Scanalyzers . | . . . Garrison Access . | . . . Total Hacks 4 | . 4 . Successful 3 | . 3 . Failed 1 | . 1 . Catastrophic . | . . . Database Lockouts . | . . . Manual . | . . . Terminals 4 | . 4 . Fabricators . | . . . Repair Stations . | . . . Recycling Units . | . . . Scanalyzers . | . . . Garrison Access . | . . . Terminal Hacks 3 | . 3 . Record 2 | . 2 . Prototype ID Bank 1 | . 1 . Fabricator Hacks . | . . . Repair Station Hacks . | . . . Recycling Unit Hacks . | . . . Scanalyzer . | . . . Garrison Access Hacks . | . . . Unauthorized Hacks . | . . . Terminals . | . . . Fabricators . | . . . Repair Stations . | . . . Recycling Units . | . . . Scanalyzers . | . . . Garrison Access . | . . . Data Cores Recovered . | . . . Used . | . . . Hacking Detections 1 | . 1 . Full Trace Events . | . . . Feedback Events . | . . . Feedback Blocked . | . . . Robot Schematics Acquired . | . . . Robots Built . | . . . Authchips . | . . . Time . | . . . Total Robot Build Rating . | . . . Part Schematics Acquired . | . . . Parts Built . | . . . Authchips . | . . . Time . | . . . Total Part Build Rating . | . . . Parts Repaired . | . . . Time . | . . . Parts Recycled . | . . . Recycled Matter . | . . . Retrieved Matter . | . . . Retrieved Components . | . . . Parts Scanalyzed . | . . . Part Schematics Acquired . | . . . Parts Damaged . | . . . Bothacking | -11 -10 -9 ------------ Run | Yrd Mat Mat Used RIF Installer . | . . . Robots Hacked . | . . . Non-combat . | . . . Combat . | . . . Robot Hacks Applied . | . . . Relay Couplers Released . | . . . Fabnet Peak Effective % . | . . . Robots Rewired . | . . . Allies Hacked . | . . . Hacks Repelled . | . . . Allies | -11 -10 -9 -------- Run | Yrd Mat Mat Total Allies . | . . . Largest Group . | . . . Highest-Rated Group . | . . . Highest-Rated Ally . | . . . Total Orders . | . . . Ally Attacks . | . . . Total Damage . | . . . Kills . | . . . Allies Corrupted . | . . . Allies Melted . | . . . Intel | -11 -10 -9 ------- Run | Yrd Mat Mat Robot Analysis Total . | . . . Derelict Logs Recovered . | . . . Drone Launches . | . . . Drone Recoveries . | . . . Exploration | -11 -10 -9 ------------- Run | Yrd Mat Mat Turns Passed 924 | 94 676 154 Spaces Moved 613 | 57 400 156 Core 105 | 3 . 102 Treads 435 | 54 381 . Legs . | . . . Wheels . | . . . Hover 73 | . 19 54 Flight . | . . . Fastest Speed 46 | 50 116 46 Average Speed 134 | 154 157 65 Slowest Speed 160 | 160 160 150 Overloaded Moves . | . . . Propulsion Burnouts . | . . . Robots Hopped . | . . . Cave-ins Triggered . | . . . Exploration Rate (%) 22 | 4 48 16 Regions Visited 2 Branch Regions . Pre-discovered Areas . | . . . Known Exits Taken . | . . . Unknown Exits Taken 2 | 1 1 . Scrap Searched . | . . . Spaces Dug . | . . . Terrain Destroyed . | . . . Melee . | . . . Projectile . | . . . AOE . | . . . Terrain Rammed . | . . . Walls Destroyed . | . . . Machines Disabled . | . . . Actions | -11 -10 -9 --------- Run | Yrd Mat Mat Total 665 | 61 423 181 Wait . | . . . Move 611 | 56 399 156 Hop . | . . . Pick Up 3 | . 3 . Fast Attach 12 | 5 3 4 Attach 1 | . 1 . Detach 2 | . 2 . Swap 2 | . 2 . Drop . | . . . Fire 18 | . 12 6 Melee 7 | . . 7 Ram 8 | . . 8 Kick . | . . . Crush 1 | . 1 . Escape Stasis . | . . . Rewire . | . . . Trap . | . . . Miscellaneous . | . . . Route ------- -11/Scrapyard -10/Materials (discovered 4 exits: [*Mat x2] / [*Min x2]) -9/Materials (discovered 1 exit: [*Min]) History --------- Turn | Location | Event 17 | -11/Scrapyard | Discovered new exit (range 14) 95 | -11/Scrapyard | Entered Materials 238 | -10/Materials | Discovered new exit (range 16) 305 | -10/Materials | Build established: Mutant 384 | -10/Materials | Discovered new exit (range 7) 479 | -10/Materials | Discovered new exit (range 16) 766 | -10/Materials | Discovered new exit (range 4) 771 | -10/Materials | Entered another Materials area 771 | -9/Materials | Evolved 2 slots: Propulsion x1, Utility x1 860 | -9/Materials | Lost 4 parts (1p1n1u1w) 863 | -9/Materials | Discovered new exit (range 8) 874 | -9/Materials | Core integrity fell below 50% 911 | -9/Materials | Core integrity fell below 20% 925 | -9/Materials | Destroyed by G-34 Mercenary with Small Laser Last Messages --------------- time, Great Maul automatically deactivated. (Secondary inactive melee weapons have a chance to conduct follow-up attacks, see the manual.) Acquired Prototype Hover Unit. Identified Aerolev Unit. [Achievement: Risk Taker] Acquired Aerolev Unit. R-06 Scavenger collects Lgt. Ion Engine. R-06 Scavenger collects Flight Unit. Critical hit (Burn: +37). R-06 Scavenger collects Lgt. Assault Rifle. Y-45 Defender suffers critical hit (Smash). Destroyed Heat Sink. Y-45 Defender system corrupted by crushing effect. R-06 Scavenger collects Flight Unit. G-34 Mercenary destroyed. K-01 Serf collects debris. Aerolev Unit destroyed. Map ----- +----------------------------------------------------+ | | | | | | | | | | | ?????????????????????????????????????????????????? | | ?????????????????????????????????????????????????? | | ?????????????????????????????????????????????????? | | #######################??????????????????????????? | | ########################?????????????????????????? | | ???????????????????????? | | ^ % ???????????????????????? | | !] ???????????????????????? | | #########=######+###### ???????????????????????? | | ### # ### ???????????????????????? | | ??# # ????????# ???????????????????????? | | ??# # ????????# ???????????????????????? | | ??#! """"" # ????????# #??????????????????????? | | ??# """"" # ????????# #??????????????????????? | | ??# """"" #?????????# #??????????????????????? | | ??# #?????????# #??????????????????????? | | ??# #?????????# #??????????????????????? | | ??##/########?????????# #??????????????????????? | | #### #????????????????#g =#??????????????????????? | | #????????????????# [%#??????????????????????? | | #????????????????# @#????+?????????????????? | | #????????????????# #???? ?????????????????? | | #??????#?????????# l#???? ?????????????????? | | #### #???? #?????##### #???? ?????????????????? | | ??# #??""" #?????#// #???# #????????????????? | | "" # # """ #?????# #???# #????????????????? | | "" + + """ #?????#// #??? ????????????????? | | "" # # #?????#// #??? ????????????????? | | ??# #??= #?????# #??? ????????????????? | | ???# #????###?????#== #???# #????###?????????? | | ???# #????????????##### Y #???# #??"" ? ???????? | | ???# #??????########### k##### # "T" #??????? | | ???# #??????# # kY = + #??????? | | ???# #??????# # ##### # #??????? | | ???# ###????# # #???# #??########??????? | | ???# ###### # #???# #????????????????? | | ???# + # #???#+#????????????????? | | ???# ###### # #??????????????????????? | | ???# #????# # #??????????????????????? | | ???# #????# # #??????????????????????? | | ??# ############+## #??????????????????????? | | ??# T #??????????????????????? | | ??+ "" # +????????????? | | ??# / ! #????????????? | | ??# #######+####### # #????????????? | +----------------------------------------------------+ Best States ------------- Heat Dissipation 28 Energy Generation 10 Energy Capacity 250 Matter Stores 182 Matter Capacity 300 Sight Range 16 Terrain Scan Density 10 Armor Coverage 150 Evasion (%) 55 Recoil Reduction 2 Item Schematics ----------------- None Robot Schematics ------------------ None Fabricated ------------ Nothing Alien Tech Used ----------------- None Achievements -------------- Fist Fight Risk Taker Challenges ------------ None Game ------ Seed SupercompositeMiningPit Manual? 0 Play Time 00:09:31 Cumulative 0.6 hours Start 2025.03.20 @ 19:45:53 End 2025.03.20 @ 19:56:00 Sessions 1 Manual Loads 0 Difficulty Rogue Special Mode None Game No. 4 Rogue 4 Adventurer 0 Explorer 0 Win Type - Total 0 Types 0/0/0/0/0/0/0/0/0 Lore% 1 Gallery% 2 Achievement% 3 Wizard Run 0 Options --------- Layout 1 ASCII 0 Keyboard 0 Movement Arrows Keybinds 0 Fullscreen 1 Font 24/Smallcaps Map View 50x35 Zoom Use 0% Tactical HUD 0 Map Filters NONE Filters NONE Steam 1 RUN: c343c37e-1b49-4a0e-b801-c6d3a44f0de5